bitfinex/quotes_ETHUSD_20250422
["timestamp","ask_amount","ask_price","bid_price","bid_amount"]
[1745291799147,0.12575946,1572.5,1572.4,14.37315795]
[1745291799349,19.6067793,1572.8,1572.4,20.73263461]
[1745291799350,12.43834444,1572.8,1572.4,20.73263461]
[1745291799657,6.08,1572.8,1572.5,9.2577362]
[1745291799860,6.08,1572.8,1572.6,6.35884124]
[1745291800364,13.47663002,1573.0,1572.6,6.35884124]
[1745291800539,6.35770028,1572.9,1572.5,12.87509176]
[1745291800737,6.35770028,1572.9,1572.5,19.2341553]
[1745291800965,6.35770028,1572.9,1572.6,1.92341553]
[1745291802331,7.11906037,1573.0,1572.6,8.28224713]
[1745291802531,13.47664533,1573.0,1572.6,8.28224713]
[1745291802755,6.35768696,1572.9,1572.7,5.721]
[1745291802956,13.19771576,1573.3,1572.9,6.35749754]
[1745291803141,6.35542088,1573.5,1573.1,0.7617]
[1745291803351,6.35578945,1573.4,1573.2,5.721]
[1745291803662,6.35542088,1573.5,1573.2,5.721]
[1745291804843,12.71098774,1573.5,1573.2,6.36927]
[1745291805053,12.71099774,1573.5,1573.2,6.36927]
[1745291805237,6.35581858,1573.4,1573.2,5.721]
[1745291805436,6.35542088,1573.5,1573.2,5.721]
[1745291805969,6.3556852,1573.4,1573.2,5.721]
[1745291806535,6.35542088,1573.5,1573.2,5.721]
[1745291807145,0.7615,1573.6,1573.2,5.721]
[1745291807350,6.35514127,1573.6,1573.3,0.5721]
[1745291807582,6.35514127,1573.6,1573.3,0.7617]
[1745291807958,12.43468269,1573.7,1573.3,7.18131567]
[1745291808172,7.11578016,1573.8,1573.4,6.3555463]
[1745291808367,12.43383762,1573.9,1573.5,7.11677248]
[1745291808592,6.35386304,1573.9,1573.6,5.72]
[1745291809286,7.11496463,1574.0,1573.6,5.72]
[1745291809450,6.35346463,1574.0,1573.7,0.0635415]
[1745291809645,6.35378472,1573.9,1573.6,7.37177822]
[1745291811076,6.35364465,1573.9,1573.6,7.37177822]
[1745291811696,6.8668,1574.1,1573.6,7.37177822]
[1745291811864,1.11829936,1574.3,1573.9,4.45085697]
[1745291812192,0.1,1574.4,1574.1,3.68105697]
[1745291812688,0.13856996,1574.3,1574.1,3.68105697]
[1745291812998,0.13856996,1574.3,1574.2,0.7698]
[1745291813166,6.49059943,1574.3,1574.0,6.9338857]
[1745291813778,0.13856996,1574.3,1574.1,0.69338857]
[1745291814350,6.35260377,1574.2,1574.0,6.4888]
[1745291814766,0.13856996,1574.1,1574.0,6.4888]
[1745291814971,6.35260377,1574.2,1574.0,6.4888]
[1745291815168,6.4914065,1574.1,1574.0,5.719]
[1745291816800,6.35398054,1573.9,1573.7,5.717]
[1745291816956,6.35404752,1573.8,1573.7,5.717]
[1745291817156,6.35398054,1573.9,1573.7,5.717]
[1745291817398,0.13856996,1573.8,1573.7,5.717]
[1745291817690,6.35394188,1573.9,1573.7,5.717]
[1745291817996,6.49261748,1573.8,1573.7,5.717]
[1745291820160,0.13856996,1573.8,1573.7,5.717]
[1745291820479,0.13856996,1573.8,1573.7,8.3848]
[1745291820679,12.43342009,1574.0,1573.7,8.3848]
[1745291820873,0.13856996,1573.8,1573.7,5.717]
[1745291821072,12.70696993,1574.0,1573.7,5.717]
[1745291821261,6.35342009,1574.0,1573.7,5.717]
[1745291821479,0.14193854,1573.9,1573.7,5.717]
[1745291822027,6.49562147,1573.9,1573.7,5.717]
[1745291822713,0.14193854,1573.9,1573.7,5.717]
[1745291822912,0.14193854,1573.9,1573.7,5.78053614]
[1745291823224,0.14193854,1573.9,1573.7,5.717]
[1745291823514,6.49558667,1573.9,1573.7,5.717]
[1745291825415,6.35404752,1573.8,1573.7,5.717]
[1745291825996,6.49598606,1573.8,1573.7,5.717]
[1745291826315,6.35597477,1573.4,1573.0,5.717]
[1745291826520,6.35624622,1573.3,1573.0,5.717]
[1745291826815,6.35647088,1573.2,1573.1,0.5717]
[1745291826984,6.35647088,1573.2,1573.0,5.717]
[1745291827183,6.49840942,1573.2,1573.0,5.717]
[1745291828391,12.85522058,1573.2,1573.0,5.717]
[1745291828893,6.49840942,1573.2,1573.0,5.717]
[1745291829605,6.35687496,1573.1,1573.0,5.717]
[1745291829807,8.4065034,1573.1,1573.0,5.717]
[1745291830011,7.12097496,1573.1,1573.0,5.717]
[1745291830211,7.2629135,1573.1,1573.0,5.717]
[1745291831820,6.35808748,1572.8,1572.6,3.0]
[1745291832117,6.35808748,1572.8,1572.7,5.715]
[1745291832326,6.50002602,1572.8,1572.7,5.715]
[1745291833793,0.14193854,1572.8,1572.7,6.2865]
[1745291833993,0.14193854,1572.8,1572.7,7.0729]
[1745291834324,0.14193854,1572.8,1572.7,13.43131335]
[1745291834522,12.43692791,1573.1,1572.7,13.43131335]
[1745291834696,0.14193854,1573.0,1572.7,7.0729]
[1745291834896,6.49922358,1573.0,1572.7,7.0729]
[1745291835298,6.35783274,1572.9,1572.7,6.5014]
[1745291835607,13.4791384,1573.0,1572.7,5.715]
[1745291835922,13.4790985,1573.0,1572.7,5.715]
[1745291836123,0.12980654,1572.9,1572.7,5.715]
[1745291836325,6.48752895,1572.9,1572.7,5.715]
[1745291836547,0.12980654,1572.9,1572.7,5.715]
[1745291836848,0.12980654,1572.9,1572.8,0.7864]
[1745291837043,0.12980654,1572.9,1572.8,10.20806136]
[1745291837348,0.12980654,1572.9,1572.8,10.14448748]
[1745291837661,6.08,1573.1,1572.8,16.5023301]
[1745291837837,0.12980654,1572.9,1572.8,10.14424262]
[1745291838039,6.35544731,1573.5,1573.1,6.35673687]
[1745291838346,6.8441,1573.6,1573.1,5.716]
[1745291838511,6.35629101,1573.3,1573.1,5.716]
[1745291839948,6.35584363,1573.4,1573.1,5.716]
[1745291840149,12.71180265,1573.4,1573.1,5.716]
[1745291840511,6.35647088,1573.2,1573.1,5.716]
[1745291840713,6.35610284,1573.3,1573.1,5.716]
[1745291842015,12.71244686,1573.3,1573.1,5.716]
[1745291842346,12.71251239,1573.3,1573.1,5.716]
[1745291842545,7.62735408,1573.3,1572.8,0.7864]
[1745291842747,6.35747823,1573.0,1572.9,5.716]
[1745291843050,6.35784595,1572.9,1572.8,5.716]
[1745291843650,6.48765249,1572.9,1572.8,5.716]
[1745291848546,0.12980654,1572.9,1572.8,12.07408748]
[1745291848857,17.22428886,1574.0,1573.2,0.7869]
[1745291848858,6.35498638,1573.6,1573.2,0.7869]
[1745291849065,6.35498638,1573.6,1573.3,5.717]
[1745291849244,0.12980654,1573.5,1573.3,5.717]
[1745291849855,0.12980654,1573.5,1573.3,5.78055514]
[1745291850051,0.12980654,1573.5,1573.3,5.717]
[1745291850344,12.43467138,1573.7,1573.3,7.63864826]
[1745291850547,6.35544,1573.5,1573.3,5.717]
[1745291850743,0.13587429,1573.4,1573.3,5.717]
[1745291850975,6.35511822,1573.6,1573.3,5.717]
[1745291851286,0.13587429,1573.4,1573.3,5.717]
[1745291851455,6.35544752,1573.5,1573.3,5.717]
[1745291851663,0.13587429,1573.4,1573.3,6.36739]
[1745291851869,0.13587429,1573.4,1573.3,12.72345686]
[1745291852049,6.35449531,1573.7,1573.3,6.36739]
[1745291852376,6.35449531,1573.7,1573.3,12.72340992]
[1745291852555,0.13587429,1573.6,1573.3,12.72323913]
[1745291852751,0.13587429,1573.6,1573.5,6.35525897]
[1745291853056,6.35365981,1573.9,1573.5,7.14215897]
[1745291853262,0.13587429,1573.6,1573.5,0.7869]
[1745291853463,6.35413737,1573.8,1573.5,0.7869]
[1745291853673,0.13587429,1573.6,1573.5,7.14215897]
[1745291853994,0.13587429,1573.6,1573.5,8.61914606]
[1745291854276,6.35365981,1573.9,1573.5,8.61914606]
[1745291854440,0.13587429,1573.6,1573.5,8.61914606]
[1745291854644,6.35365981,1573.9,1573.5,8.61914606]
[1745291854840,0.13587429,1573.6,1573.5,8.61914606]
[1745291855096,6.08,1574.1,1573.6,6.35455085]
[1745291855262,6.35286039,1574.1,1573.7,12.70577368]
[1745291855640,6.35286039,1574.1,1573.7,6.35145509]
[1745291856087,6.3525807,1574.2,1573.7,12.70580922]
[1745291856393,6.45180477,1574.4,1573.9,3.0]
[1745291856595,6.35248576,1574.2,1573.9,3.0]
[1745291856748,6.35248576,1574.2,1573.9,3.37869]
[1745291856948,6.35217708,1574.3,1573.9,3.37869]
[1745291857179,12.70459499,1574.3,1573.9,3.37869]
[1745291857663,6.35217708,1574.3,1573.9,3.37869]
[1745291857865,0.13587429,1574.2,1573.9,3.37869]
[1745291858074,0.13587429,1574.2,1574.0,0.337869]
[1745291858271,0.13587429,1574.2,1574.1,5.715]
[1745291858477,6.35207251,1574.3,1574.1,5.715]
[1745291858643,0.13587429,1574.2,1574.1,5.715]
[1745291859690,12.80377348,1574.4,1574.1,5.715]
[1745291859886,0.13587429,1574.2,1574.1,5.715]
[1745291860046,12.80377348,1574.4,1574.1,5.715]
[1745291860252,8.34023785,1574.4,1574.2,0.7713]
[1745291860467,6.4518605,1574.4,1574.2,0.7713]
[1745291860994,0.1,1574.4,1574.1,5.715]
[1745291861391,0.1,1574.4,1574.2,6.41556239]
[1745291861597,0.1,1574.4,1574.3,7.12332947]
[1745291861756,0.1,1574.4,1574.3,10.12332947]
[1745291861962,0.1,1574.4,1574.3,12.18904774]
[1745291868810,0.1,1574.4,1574.3,6.30618771]
[1745291869695,0.1,1574.4,1574.3,12.72172461]
[1745291869901,0.1,1574.4,1574.3,12.65821718]
[1745291870081,0.25298013,1574.4,1574.3,12.65821718]
[1745291870590,0.1,1574.4,1574.3,12.65821718]
[1745291870992,0.25298013,1574.4,1574.3,12.65821718]
[1745291871312,0.1,1574.4,1574.3,12.65821718]
[1745291871682,0.25298013,1574.4,1574.3,12.65821718]
[1745291872923,0.15298013,1574.4,1574.3,13.20821718]
[1745291873216,6.8333,1575.2,1574.8,6.34976624]
[1745291873411,0.7533,1575.2,1574.9,6.34297662]
[1745291873620,0.14023178,1575.1,1574.9,6.34297662]
[1745291873997,7.10183111,1575.2,1574.9,6.34297662]
[1745291874198,0.14023178,1575.0,1574.9,12.69258611]
[1745291874402,0.7533,1575.2,1574.9,6.34297662]
[1745291874599,0.14023178,1575.0,1574.9,6.34297662]
[1745291875136,7.10183058,1575.2,1574.9,6.34297662]
[1745291875348,0.14023178,1575.1,1574.9,6.34297662]
[1745291875833,7.10183058,1575.2,1574.9,6.34297662]
[1745291875999,0.14023178,1575.0,1574.9,6.34297662]
[1745291876201,7.10183058,1575.2,1574.9,6.34297662]
[1745291876412,0.14023178,1575.0,1574.9,6.34297662]
[1745291876617,7.10183058,1575.2,1574.9,6.34297662]
[1745291876834,0.14023178,1575.0,1574.9,6.34297662]
[1745291877035,7.10183058,1575.2,1574.9,6.34297662]
[1745291877243,0.14023178,1575.0,1574.9,6.34297662]
[1745291877444,7.10183058,1575.2,1574.9,6.34297662]
[1745291877643,0.14023178,1575.0,1574.9,6.34297662]
[1745291878311,0.14023178,1575.0,1574.9,12.69242701]
[1745291878529,0.7533,1575.2,1575.0,6.34894289]
[1745291878729,0.7533,1575.2,1575.0,1.90413699]
[1745291878950,0.14023178,1575.1,1575.0,1.90413699]
[1745291879154,0.8969,1575.4,1575.0,8.25334333]
[1745291879364,0.14023178,1575.3,1575.1,6.34878025]
[1745291879644,0.14023178,1575.3,1575.2,6.3484002]
[1745291879948,0.14023178,1575.3,1575.2,1.68789899]
[1745291880107,0.14023178,1575.3,1575.2,11.03629919]
[1745291880605,0.1,1575.4,1575.3,3.0]
[1745291880807,0.1,1575.4,1575.3,8.707]
[1745291881007,0.24857262,1575.4,1575.3,8.707]
[1745291881252,0.24857262,1575.4,1575.3,10.38131559]
[1745291881618,0.24857262,1575.4,1575.3,8.707]
[1745291882639,0.24857262,1575.4,1575.3,15.0549972]
[1745291882969,0.24857262,1575.4,1575.3,8.707]
[1745291884247,0.24857262,1575.4,1575.3,18.71820218]
[1745291884442,0.7969,1575.8,1575.6,6.34672831]
[1745291884647,0.7969,1575.8,1575.7,5.706]
[1745291886867,0.3977842,1575.9,1575.7,5.706]
[1745291887268,0.3977842,1575.9,1575.7,5.76945694]
[1745291888079,0.3977842,1575.9,1575.8,9.34598299]
[1745291888270,0.3977842,1575.9,1575.8,9.8301608]
[1745291888469,0.3977842,1575.9,1575.8,12.43558609]
[1745291889593,0.3977842,1575.9,1575.8,6.0896031]
[1745291890090,0.3977842,1575.9,1575.8,12.43558609]
[1745291890458,0.3977842,1575.9,1575.8,6.0896031]
[1745291891097,0.3977842,1575.9,1575.8,12.43558609]
[1745291891490,0.3977842,1575.9,1575.8,12.49903661]
[1745291891658,0.3977842,1575.9,1575.8,12.43558609]
[1745291892117,0.3977842,1575.9,1575.8,12.49903657]
[1745291892395,0.54768352,1575.9,1575.8,12.49903657]
[1745291892694,0.54768352,1575.9,1575.8,6.0896031]
[1745291892909,0.54768352,1575.9,1575.8,2.60542529]
[1745291893057,6.34598299,1575.8,1575.7,5.706]
[1745291893459,6.34598299,1575.8,1575.4,5.701]
[1745291893460,6.34741639,1575.5,1575.4,5.701]
[1745291894199,6.49731571,1575.5,1575.4,5.701]
[1745291894557,6.49731571,1575.5,1574.9,34.44734522]
[1745291894558,6.3484002,1575.2,1575.1,5.701]
[1745291894963,6.49829952,1575.2,1575.1,5.701]
[1745291895802,6.3500127,1574.8,1574.7,5.701]
[1745291895980,0.13807407,1574.8,1574.5,5.701]
[1745291896183,6.34962456,1574.9,1574.5,12.05197348]
[1745291896365,0.13807407,1574.8,1574.5,5.701]
[1745291896589,6.35002591,1574.8,1574.5,5.701]
[1745291896902,0.13807407,1574.7,1574.5,13.55745849]
[1745291897101,0.13807407,1574.7,1574.5,7.20624015]
[1745291897292,6.34975215,1574.9,1574.5,7.20624015]
[1745291897493,0.13807407,1574.6,1574.5,16.55741045]
[1745291897808,6.34887992,1575.1,1574.7,6.35028307]
[1745291898006,12.4286175,1575.2,1574.7,7.62034132]
[1745291898298,6.3486175,1575.2,1574.8,6.34986736]
[1745291898498,12.69734592,1575.2,1574.9,5.702]
[1745291898880,6.34881861,1575.1,1574.9,5.702]
[1745291900008,6.34866285,1575.2,1574.9,5.702]
[1745291900193,6.34920634,1575.0,1574.9,5.702]
[1745291901383,6.53126054,1575.0,1574.9,5.702]
[1745291902706,6.66933461,1575.0,1574.9,5.702]
[1745291903272,6.34911472,1575.1,1574.9,6.524]
[1745291903606,0.12656789,1575.0,1574.9,5.702]
[1745291903906,6.47577423,1575.0,1574.9,5.702]
[1745291904308,0.12656789,1575.0,1574.9,5.702]
[1745291906499,0.12656789,1575.0,1574.9,6.91352875]
[1745291907009,6.34773467,1575.4,1575.1,3.0]
[1745291907214,6.47461657,1575.3,1575.1,3.46876783]
[1745291907427,0.12656789,1575.3,1575.1,3.46876783]
[1745291907583,0.12656789,1575.3,1575.1,3.89312461]
[1745291907914,6.47475156,1575.3,1575.1,3.42435678]
[1745291908108,6.3484002,1575.2,1575.1,3.0]
[1745291908407,6.34818367,1575.3,1575.0,3.7748]
[1745291908722,0.12656789,1575.2,1575.0,3.7748]
[1745291910715,0.12656789,1575.2,1575.0,10.12396587]
[1745291911016,6.34774466,1575.4,1575.0,10.12398645]
[1745291911312,6.47260979,1575.3,1575.0,6.11349657]
[1745291913837,6.34844919,1575.2,1575.0,6.11349657]
[1745291914124,6.47260979,1575.3,1575.0,3.7748]
[1745291914332,6.3480589,1575.3,1575.0,3.7748]
[1745291914498,0.12455089,1575.2,1575.0,3.7748]
[1745291914832,0.12455089,1575.2,1575.0,10.12387923]
[1745291915355,12.69568872,1575.4,1575.0,10.12387923]
[1745291915638,12.69568872,1575.4,1575.0,12.34142429]
[1745291915809,0.12455089,1575.3,1575.0,12.34142429]
[1745291916215,6.34771368,1575.4,1575.0,12.34138002]
[1745291916532,0.12455089,1575.3,1575.0,12.34138002]
[1745291917030,6.34880325,1575.1,1575.0,3.0]
[1745291917231,12.6979628,1575.1,1574.9,5.702]
[1745291917431,6.34880325,1575.1,1574.9,5.702]
[1745291917631,0.12455089,1575.0,1574.9,8.702]
[1745291918035,6.34883862,1575.1,1574.9,8.702]
[1745291918240,0.12455089,1575.0,1574.9,8.702]
[1745291919009,7.30015723,1575.0,1574.9,5.702]
[1745291919214,8.66505682,1575.0,1574.9,5.702]
[1745291919746,8.66505682,1575.0,1574.6,21.7523]
[1745291919944,6.34986186,1574.9,1574.6,27.4553]
[1745291920440,0.12455089,1574.8,1574.6,27.4553]
[1745291920644,0.12455089,1574.8,1574.6,33.80582143]
[1745291920810,6.34998419,1574.9,1574.7,3.38058214]
[1745291921015,6.35041595,1574.7,1574.6,26.636]
[1745291921231,6.35006326,1574.8,1574.6,26.636]
[1745291921417,0.11957406,1574.7,1574.6,26.636]
[1745291922150,6.46999001,1574.7,1574.6,26.636]
[1745291922346,6.46999001,1574.7,1574.6,5.703]
[1745291923245,7.75199534,1574.7,1574.6,5.703]
[1745291923454,6.35162601,1574.4,1574.3,5.701]
[1745291923616,7.17762318,1574.5,1574.3,5.701]
[1745291924016,0.11957406,1574.4,1574.3,5.701]
[1745291924240,6.08,1574.6,1574.3,12.05302947]
[1745291924414,0.11957406,1574.4,1574.3,13.94139729]
[1745291924627,6.08,1574.6,1574.3,13.94139729]
[1745291924819,0.11957406,1574.5,1574.3,13.94113053]
[1745291925047,0.11957406,1574.5,1574.4,10.17092601]
[1745291927149,0.11957406,1574.5,1574.4,10.2344332]
[1745291927453,0.11957406,1574.5,1574.4,12.65198957]
[1745291927641,0.11957406,1574.5,1574.4,12.58848238]
[1745291928162,0.11957406,1574.5,1574.4,16.76037264]
[1745291928375,7.17522883,1575.1,1574.8,6.34993155]
[1745291928548,0.8264,1575.1,1574.7,12.05114146]
[1745291928861,0.11957406,1575.0,1574.9,6.34960949]
[1745291929366,0.11957406,1575.0,1574.8,10.16906937]
[1745291929666,12.42845409,1575.2,1574.8,10.16906937]
[1745291929819,0.11957406,1574.9,1574.8,10.16906937]
[1745291930020,12.42845409,1575.2,1574.8,10.16906937]
[1745291930247,0.11957406,1575.1,1574.8,10.16906937]
[1745291930432,0.11957406,1575.1,1574.8,6.52832948]
[1745291930632,6.34892156,1575.1,1574.8,6.52832948]
[1745291930837,6.34960949,1574.9,1574.7,5.701]
[1745291931217,0.11957406,1574.8,1574.7,8.701]
[1745291931421,6.34960949,1574.9,1574.7,8.701]
[1745291931721,0.11957406,1574.8,1574.7,8.701]
[1745291931935,7.17564994,1575.0,1574.7,8.701]
[1745291932130,0.8264,1575.0,1574.7,10.28808567]
[1745291932330,0.11957406,1574.9,1574.7,10.28808567]
[1745291932754,0.11957406,1574.9,1574.7,16.70172713]
[1745291933013,6.3489459,1575.1,1574.7,16.63822817]
[1745291933218,0.11957406,1575.0,1574.7,16.63822817]
[1745291933460,0.11957406,1575.0,1574.8,8.01360716]
[1745291933824,19.60372128,1575.2,1574.8,8.01360716]
[1745291934119,0.11957406,1575.1,1574.9,6.34948902]
[1745291934323,13.25482406,1575.2,1574.9,7.11668902]
[1745291934638,0.11957406,1575.1,1574.9,7.11668902]
[1745291934953,6.34819903,1575.3,1575.0,0.7116689]
[1745291935164,0.8302,1575.4,1575.1,12.04953849]
[1745291935861,7.17793066,1575.4,1575.1,5.701]
[1745291936365,0.8302,1575.4,1575.1,5.701]
[1745291936560,6.34831127,1575.3,1575.1,5.701]
[1745291938854,6.34830982,1575.3,1575.1,5.701]
[1745291939064,6.3484002,1575.2,1575.1,5.701]
[1745291939547,7.1786002,1575.2,1575.1,5.701]
[1745291940120,6.3490659,1575.1,1574.9,3.0]
[1745291940325,7.17880486,1575.2,1574.9,3.0]
[1745291940556,13.52756907,1575.2,1574.9,3.0]
[1745291940757,6.34891836,1575.1,1574.9,3.0]
[1745291941255,1.42454201,1575.2,1574.9,3.0]
[1745291941465,0.8302,1575.4,1574.9,9.34946639]
[1745291941662,6.34839748,1575.3,1574.9,9.34946639]
[1745291941863,6.34839748,1575.3,1574.9,17.91557763]
[1745291942066,6.34839748,1575.3,1574.9,11.56611124]
[1745291942477,6.34832176,1575.3,1574.9,5.21675106]
[1745291942966,6.34865177,1575.2,1574.9,3.0]
[1745291944960,6.34865177,1575.2,1574.9,9.34959431]
[1745291945167,12.69646888,1575.3,1574.9,9.34959431]
[1745291945864,6.34855763,1575.2,1574.9,9.34959431]
[1745291946064,6.34855763,1575.2,1574.9,3.0]
[1745291946261,6.34818104,1575.3,1574.9,9.41292941]
[1745291946462,6.34818104,1575.3,1575.0,6.34907327]
[1745291947169,6.34818104,1575.3,1574.9,9.34943749]
[1745291947333,6.3486335,1575.2,1574.9,3.0]
[1745291947656,0.12118839,1575.1,1574.9,3.0]
[1745291947974,0.12118839,1575.0,1574.9,3.0]
[1745291948153,0.8302,1575.4,1574.9,10.93140654]
[1745291948154,6.34820335,1575.3,1574.9,10.93140654]
[1745291948359,6.46967918,1575.2,1574.9,9.34960949]
[1745291949176,0.12118839,1575.2,1574.9,9.34960949]
[1745291949398,0.12118839,1575.2,1575.0,6.34919431]
[1745291949748,0.12118839,1575.2,1575.0,5.7]
[1745291950174,6.46959939,1575.2,1575.0,5.7]
[1745291950481,6.34880325,1575.1,1575.0,5.7]
[1745291950649,6.46959939,1575.2,1575.0,5.7]
[1745291950976,6.34880325,1575.1,1575.0,5.7]
[1745291951157,6.47052973,1575.1,1575.0,5.7]
[1745291951870,0.12172648,1575.1,1575.0,5.7]
[1745291952067,6.47052973,1575.1,1575.0,5.7]
[1745291952271,6.34880325,1575.1,1575.0,5.7]
[1745291952481,6.47052973,1575.1,1575.0,5.7]
[1745291955492,8.46676347,1575.1,1575.0,5.7]
[1745291955690,6.47052973,1575.1,1575.0,5.7]
[1745291956271,0.12172648,1575.1,1575.0,5.7]
[1745291956472,0.12172648,1575.1,1575.0,12.85770634]
[1745291956771,6.08,1575.3,1575.1,6.34874647]
[1745291957357,6.08,1575.3,1575.0,12.85748554]
[1745291957595,6.08,1575.3,1575.0,7.45476866]
[1745291957752,12.42824774,1575.3,1575.0,7.45476866]
[1745291958091,6.34842202,1575.2,1575.0,7.45476866]
[1745291958887,12.42821219,1575.3,1575.0,7.45476866]
[1745291959085,12.42821219,1575.3,1575.0,13.80396641]
[1745291961057,12.42821219,1575.3,1575.0,7.45476866]
[1745291961457,6.34821219,1575.3,1575.0,6.5085]
[1745291961657,6.34774298,1575.4,1575.0,12.85750662]
[1745291961863,6.34774298,1575.4,1575.0,19.20646403]
[1745291962074,12.69564305,1575.4,1575.0,12.85745741]
[1745291962589,0.12186098,1575.3,1575.0,12.85745741]
[1745291962773,0.12186098,1575.3,1575.0,15.14472504]
[1745291963203,0.12186098,1575.3,1575.0,15.14470479]
[1745291963507,0.12186098,1575.3,1575.2,7.1056002]
[1745291963708,0.12186098,1575.3,1575.2,10.1056002]
[1745291964002,6.08,1575.7,1575.5,7.10438553]
[1745291964205,7.1791341,1575.8,1575.5,0.7572]
[1745291964788,13.52549704,1575.8,1575.5,0.7572]
[1745291965109,7.1791341,1575.8,1575.5,1.22707091]
[1745291965315,6.3461341,1575.8,1575.5,1.22707091]
[1745291965611,18.77087541,1576.0,1575.6,6.34666761]
[1745291965768,19.60387541,1576.0,1575.6,6.34666761]
[1745291965976,13.25792395,1576.1,1575.7,6.34626234]
[1745291966222,13.25714114,1576.3,1575.8,12.10627891]
[1745291966373,0.1,1576.4,1575.9,3.7572]
[1745291966723,0.1,1576.4,1576.0,6.34505271]
[1745291967224,0.1,1576.4,1576.1,3.0]
[1745291967418,6.44371044,1576.4,1576.1,3.0634412]
[1745291967982,0.1,1576.4,1575.9,4.42304498]
[1745291968128,6.34461216,1576.2,1575.9,3.7572]
[1745291968530,6.34414228,1576.3,1575.9,3.7572]
[1745291968733,6.34414228,1576.3,1575.9,7.42304498]
[1745291969104,6.34414228,1576.3,1575.9,4.23509361]
[1745291969427,6.34441982,1576.2,1575.9,4.23509361]
[1745291969924,6.34441982,1576.2,1575.9,5.22830297]
[1745291970289,6.34480565,1576.1,1575.9,3.7572]
[1745291970715,12.6898725,1576.1,1575.9,3.0]
[1745291970922,6.34517766,1576.0,1575.9,3.0]
[1745291971129,6.3455803,1575.9,1575.8,5.697]
[1745291971328,6.34501785,1576.1,1575.8,5.697]
[1745291971486,6.34522241,1576.0,1575.8,5.697]
[1745291971911,6.34501785,1576.1,1575.8,5.697]
[1745291972412,6.34529013,1576.0,1575.8,5.697]
[1745291972717,12.69076795,1576.0,1575.8,5.697]
[1745291972923,6.3455803,1575.9,1575.8,5.697]
[1745291973119,6.34529013,1576.0,1575.8,5.697]
[1745291973851,6.34449965,1576.2,1575.8,12.68823099]
[1745291974013,6.34449965,1576.2,1575.8,6.34242]
[1745291974341,6.34449965,1576.2,1575.9,0.06344813]
[1745291974512,12.6891935,1576.2,1575.8,6.34242]
[1745291974709,6.34449965,1576.2,1575.9,0.82064815]
[1745291975355,6.34416367,1576.3,1575.9,2.17154847]
[1745291975666,12.68845366,1576.3,1575.9,2.64220365]
[1745291977041,6.34439105,1576.2,1575.9,2.64220365]
[1745291977253,12.6890976,1576.2,1575.9,2.5787555]
[1745291977413,6.34439105,1576.2,1575.9,2.5787555]
[1745291977611,0.13584114,1576.1,1575.9,2.5787555]
[1745291977854,6.34439105,1576.2,1575.9,2.64220362]
[1745291978017,0.13584114,1576.1,1575.9,2.64220362]
[1745291978218,6.34439105,1576.2,1575.9,2.64220362]
[1745291978544,0.13584114,1576.1,1575.9,2.64220362]
[1745291978947,6.34477962,1576.1,1575.9,2.5787555]
[1745291979128,0.13584114,1576.0,1575.9,2.5787555]
[1745291980739,0.13584114,1576.0,1575.9,0.7572]
[1745291981615,6.34453684,1576.2,1575.9,0.7572]
[1745291981817,0.13664706,1576.1,1575.9,0.7572]
[1745291982071,6.34399541,1576.3,1575.9,7.16622523]
[1745291982373,6.48122872,1576.2,1575.9,0.82065169]
[1745291982718,6.48122872,1576.2,1575.9,1.62284555]
[1745291983965,6.48122872,1576.2,1575.9,2.03105608]
[1745291984119,12.8259661,1576.2,1575.9,2.03105608]
[1745291984322,6.48122872,1576.2,1575.9,2.03105608]
[1745291985561,6.48122872,1576.2,1575.9,2.09450427]
[1745291985744,6.48122872,1576.2,1575.9,2.03105608]
[1745291986151,6.48122872,1576.2,1576.0,5.692]
[1745291987021,12.82598821,1576.2,1576.0,5.692]
[1745291987337,6.34477507,1576.1,1576.0,5.692]
[1745291987940,6.48142213,1576.1,1576.0,5.692]
[1745291989658,0.13664706,1576.1,1576.0,5.692]
[1745291989858,6.34458166,1576.2,1576.0,5.692]
[1745291990057,0.13664706,1576.1,1576.0,5.692]
[1745291990357,6.34458166,1576.2,1576.0,5.692]
[1745291990656,0.13664706,1576.1,1576.0,5.692]
[1745291990855,7.10637507,1576.1,1576.0,5.692]
[1745291991021,9.22257462,1576.1,1576.0,5.692]
[1745291991433,6.34569044,1575.9,1575.7,6.4622]
[1745291991859,0.13664706,1575.8,1575.7,9.4622]
[1745291992425,0.13664706,1575.8,1575.7,6.4622]
[1745291992626,0.13664706,1575.8,1575.7,5.692]
[1745291993066,0.13664706,1575.8,1575.7,6.33822]
[1745291993235,6.34539694,1576.0,1575.7,6.33822]
[1745291993427,0.13664706,1575.9,1575.7,6.33822]
[1745291993847,0.13664706,1575.9,1575.8,0.7611]
[1745291994026,6.34500773,1576.1,1575.8,0.7611]
[1745291994222,0.13664706,1576.0,1575.8,2.74024872]
[1745291995463,0.13664706,1576.0,1575.9,6.3455803]
[1745291995671,6.34416365,1576.3,1575.9,13.4522606]
[1745291995969,0.13422898,1576.2,1576.1,0.7611]
[1745291996266,12.52371755,1576.4,1576.1,7.53029149]
[1745291996471,0.13422898,1576.3,1576.1,7.53029149]
[1745291997870,6.47833091,1576.3,1576.1,7.53029149]
[1745291999974,0.13422898,1576.3,1576.1,7.53029149]
[1745292000361,0.13422898,1576.3,1576.1,13.93848415]
[1745292000668,0.13422898,1576.3,1576.2,1.39384842]
[1745292001242,0.13422898,1576.3,1576.1,6.76919149]
[1745292001443,6.47847013,1576.3,1576.1,6.76919149]
[1745292002261,0.13422898,1576.3,1576.1,6.76919149]
[1745292002861,0.13422898,1576.3,1576.1,1.07719149]
[1745292003060,6.34496336,1576.1,1575.9,5.691]
[1745292003273,6.34517766,1576.0,1575.9,5.691]
[1745292003588,0.13422898,1576.0,1575.9,5.691]
[1745292003793,6.47940664,1576.0,1575.9,5.691]
[1745292006203,0.13422898,1576.0,1575.9,7.0212]
[1745292006502,6.34517766,1576.0,1575.9,5.692]
[1745292006646,6.47940664,1576.0,1575.9,5.692]
[1745292006842,6.47940664,1576.0,1575.4,20.924]
[1745292006843,6.34719136,1575.5,1575.4,20.924]
[1745292007057,7.15659136,1575.5,1575.4,20.924]
[1745292007260,7.15659136,1575.5,1575.3,5.692]
[1745292007261,6.34759426,1575.4,1575.3,5.692]